lending/lending_fUSD_20260204
["ID","MTS","AMOUNT","RATE_DAILY","PERIOD"]
[404478414,1770185447733,-151.0,0.00017997,2]
[404478415,1770185447742,-150.0,0.00017999,2]
[404478416,1770185447752,-252.00977238,0.00017999,2]
[404478417,1770185447761,-155.353,0.00017999,2]
[404478418,1770185447770,-300.0,0.00017999,2]
[404478419,1770185447779,-300.0,0.00017999,2]
[404478420,1770185447787,-300.0,0.00017999,2]
[404478421,1770185447796,-666.0,0.00017999,2]
[404478422,1770185447805,-300.0,0.00017999,2]
[404478423,1770185447814,-300.0,0.00017999,2]
[404478424,1770185447824,-670.68068141,0.00017999,2]
[404478425,1770185447833,-1000.0,0.00018,2]
[404478426,1770185447842,-1000.0,0.00018,2]
[404478427,1770185447851,-979.90774973,0.00018,2]
[404478428,1770185447860,-3745674.62954464,0.00018,2]
[404478429,1770185447869,-557399.92286871,0.00018,2]
[404478430,1770185448909,-2500.0,0.00016598,2]
[404478431,1770185448918,-366.69333002,0.00017132,2]
[404478432,1770185448927,-587.0,0.0001763,2]
[404478433,1770185448936,-587.0,0.00017684,2]
[404478434,1770185448946,-872.54644821,0.00017739,2]
[404478435,1770185448955,-7460.83859256,0.000179,2]
[404478436,1770185448964,-56646.99237102,0.00018,2]
[404478437,1770185448979,-581.44187764,0.00018,2]
[404478438,1770185448990,-750.44649892,0.00018,2]
[404478439,1770185449013,-330.0,0.00016854,2]
[404478440,1770185449039,-1225.0,0.00016854,2]
[404478441,1770185449048,-7011.95983597,0.00018,2]
[404478462,1770186631865,-510.999349,0.00014139,2]
[404478463,1770186631874,-63.9822028,0.0001421,7]
[404478470,1770186637865,-1064.40417485,0.0001421,7]
[404478471,1770186637880,-1154.38291172,0.0001421,7]
[404478472,1770186637889,-600.0,0.000143,2]
[404478473,1770186637898,-4418.84606289,0.0001439,2]
[404478474,1770186637988,-3847.83174617,0.0001439,2]
[404478475,1770186637999,-1554.53461667,0.0001439,2]
[404478476,1770186638010,-268.66432624,0.0001439,2]
[404478477,1770186638056,-243.91064377,0.0001439,2]
[404478478,1770186638068,-207.24440384,0.00014458,2]
[404478493,1770186639960,-392.75559616,0.00014458,2]
[404478494,1770186639973,-294.13536985,0.000146,2]
[404478495,1770186639984,-408.81018973,0.00014641,2]
[404478496,1770186639994,-500.0,0.00014999,2]
[404478497,1770186640004,-500.0,0.00014999,2]
[404478498,1770186640014,-500.0,0.00014999,2]
[404478499,1770186640024,-500.0,0.00014999,2]
[404478500,1770186640034,-500.0,0.00014999,2]
[404478501,1770186640043,-500.0,0.00014999,2]
[404478502,1770186640057,-500.0,0.00014999,2]
[404478503,1770186640066,-500.0,0.00014999,2]
[404478504,1770186640076,-500.0,0.00014999,2]
[404478505,1770186640086,-500.0,0.00014999,2]
[404478506,1770186640095,-500.0,0.00014999,2]
[404478507,1770186640105,-500.0,0.00014999,2]
[404478508,1770186640115,-500.0,0.00014999,2]
[404478509,1770186640125,-500.0,0.00014999,2]
[404478510,1770186640135,-500.0,0.00014999,2]
[404478511,1770186640144,-500.0,0.00014999,2]
[404478512,1770186640154,-500.0,0.00014999,2]
[404478513,1770186640164,-152.26391126,0.00014999,2]
[404478514,1770186640176,-347.73608874,0.00014999,2]
[404478515,1770186640186,-500.0,0.00014999,2]
[404478516,1770186640195,-500.0,0.00014999,2]
[404478517,1770186640204,-500.0,0.00014999,2]
[404478518,1770186640214,-500.0,0.00014999,2]
[404478519,1770186640224,-500.0,0.00014999,2]
[404478520,1770186640234,-500.0,0.00014999,2]
[404478521,1770186640243,-440.26391126,0.00014999,2]
[404478522,1770186640255,-59.73608874,0.00014999,2]
[404478523,1770186640264,-449.54846104,0.00014999,2]
[404478524,1770186640283,-50.45153896,0.00014999,2]
[404478525,1770186640298,-500.0,0.00014999,2]
[404478526,1770186640307,-351.20638991,0.00014999,2]
[404478527,1770186640319,-148.79361009,0.00014999,2]
[404478528,1770186640329,-500.0,0.00014999,2]
[404478529,1770186640340,-500.0,0.00014999,2]
[404478530,1770186640349,-500.0,0.00014999,2]
[404478531,1770186640359,-500.0,0.00014999,2]
[404478532,1770186640368,-500.0,0.00014999,2]
[404478533,1770186640378,-500.0,0.00014999,2]
[404478534,1770186640389,-500.0,0.00014999,2]
[404478535,1770186640399,-500.0,0.00014999,2]
[404478536,1770186640409,-500.0,0.00014999,2]
[404478537,1770186640421,-500.0,0.00014999,2]
[404478538,1770186640430,-500.0,0.00014999,2]
[404478539,1770186640440,-500.0,0.00014999,2]
[404478540,1770186640450,-500.0,0.00014999,2]
[404478541,1770186640460,-500.0,0.00014999,2]
[404478542,1770186640469,-500.0,0.00014999,2]
[404478543,1770186640479,-500.0,0.00014999,2]
[404478544,1770186640489,-500.0,0.00014999,2]
[404478545,1770186640499,-421.02427603,0.00014999,2]
[404478546,1770186640508,-500.0,0.00014999,2]
[404478547,1770186640518,-500.0,0.00014999,2]
[404478548,1770186640528,-500.0,0.00014999,2]
[404478549,1770186640537,-500.0,0.00014999,2]
[404478550,1770186640547,-71.12507718,0.00014999,2]
[404478551,1770186640571,-428.87492282,0.00014999,2]
[404478552,1770186640581,-155.64211577,0.00014999,2]
[404478553,1770186640594,-344.35788423,0.00014999,2]
[404478554,1770186640603,-500.0,0.00014999,2]
[404478555,1770186640613,-436.52115667,0.00014999,2]
[404478556,1770186640628,-63.47884333,0.00014999,2]
[404478557,1770186640638,-500.0,0.00014999,2]
[404478558,1770186640648,-500.0,0.00014999,2]
[404478559,1770186640657,-500.0,0.00014999,2]
[404478560,1770186640668,-500.0,0.00014999,2]
[404478561,1770186640677,-500.0,0.00014999,2]
[404478562,1770186640688,-500.0,0.00014999,2]
[404478563,1770186640698,-500.0,0.00014999,2]
[404478564,1770186640713,-500.0,0.00014999,2]
[404478565,1770186640723,-500.0,0.00014999,2]
[404478566,1770186640732,-492.10242761,0.00014999,2]
[404478567,1770186640741,-500.0,0.00014999,2]
[404478568,1770186640751,-500.0,0.00014999,2]
[404478569,1770186640760,-500.0,0.00014999,2]
[404478570,1770186640770,-188.58931946,0.00014999,2]
[404478571,1770186640779,-459.81543145,0.00014999,2]
[404478572,1770186640789,-250.0,0.00015,2]
[404478573,1770186640799,-2052.22892566,0.00015,2]
[404478574,1770186640808,-2142.26330442,0.00015,14]
[404478575,1770186640818,-7989.56617431,0.00015,2]
[404478576,1770186640827,-303016.73763297,0.00015,3]
[404478577,1770186640836,-1739.21226602,0.00015212,2]
[404478578,1770186640846,-1739.21226602,0.00015212,2]
[404478579,1770186640855,-166.66,0.00015312,2]
[404478580,1770186640866,-321.46,0.0001543,2]
[404478581,1770186640875,-169.0,0.00015487,2]
[404478582,1770186640885,-195.0,0.00015552,2]
[404478583,1770186640894,-1739.21226595,0.00015596,2]
[404478584,1770186640903,-1739.21226595,0.00015596,2]
[404478585,1770186640912,-600.0,0.00015631,2]
[404478586,1770186640922,-195.72251223,0.00015807,2]
[404478587,1770186640931,-166.66,0.00015817,2]
[404478588,1770186640941,-600.0,0.00015829,2]
[404478589,1770186640951,-150.491,0.00015876,2]
[404478590,1770186640961,-913.124,0.00015876,2]
[404478591,1770186640970,-280.0,0.00015889,2]
[404478592,1770186640979,-10362.45513624,0.0001595,2]
[404478593,1770186640988,-31049.6404,0.0001596,2]
[404478594,1770186640998,-1739.21226595,0.0001598,2]
[404478595,1770186641007,-1739.21226595,0.0001598,2]
[404478596,1770186641016,-409.9369716,0.0001599,2]
[404478597,1770186641025,-151.0,0.00015997,2]
[404478598,1770186641035,-1252974.97665461,0.00016,4]
[404478599,1770186641044,-160.0,0.00016,3]
[404478600,1770186641053,-151.19,0.00016064,2]
[404478601,1770186641062,-800.0,0.00016082,2]
[404478602,1770186641071,-333.34132537,0.00016112,2]
[404478603,1770186641081,-488.21440149,0.00016112,2]
[404478604,1770186641091,-1755.8902759,0.0001612,3]
[404478605,1770186641100,-202.29846219,0.0001619,2]
[404478606,1770186641109,-500.0,0.0001619,2]
[404478607,1770186641118,-151.0,0.0001619,2]
[404478608,1770186641127,-151.0,0.0001619,2]
[404478609,1770186641137,-151.0,0.0001619,2]
[404478610,1770186641146,-151.0,0.0001619,2]
[404478611,1770186641155,-151.0,0.0001619,2]
[404478612,1770186641165,-151.0,0.0001619,2]
[404478613,1770186641174,-151.0,0.0001619,2]
[404478614,1770186641184,-151.0,0.0001619,2]
[404478615,1770186641193,-151.0,0.0001619,2]
[404478616,1770186641203,-151.0,0.0001619,2]
[404478617,1770186641212,-151.0,0.0001619,2]
[404478618,1770186641223,-500.0,0.0001619,2]
[404478619,1770186641236,-500.0,0.0001619,2]
[404478620,1770186641247,-500.0,0.0001619,2]
[404478621,1770186641257,-500.0,0.0001619,2]
[404478622,1770186641266,-500.0,0.0001619,2]
[404478623,1770186641276,-500.0,0.0001619,2]
[404478624,1770186641286,-500.0,0.0001619,2]
[404478625,1770186641295,-500.0,0.0001619,2]
[404478626,1770186641304,-500.0,0.0001619,2]
[404478627,1770186641315,-500.0,0.0001619,2]
[404478628,1770186641326,-500.0,0.0001619,2]
[404478629,1770186641336,-500.0,0.0001619,2]
[404478630,1770186641347,-500.0,0.0001619,2]
[404478631,1770186641357,-500.0,0.0001619,2]
[404478632,1770186641367,-500.0,0.0001619,2]
[404478633,1770186641377,-446.398853,0.0001619,2]
[404478634,1770186641387,-500.0,0.0001619,2]
[404478635,1770186641396,-500.0,0.0001619,2]
[404478636,1770186641406,-510.88207769,0.0001619,2]
[404478637,1770186641416,-161.86,0.00016199,2]
[404478638,1770186641426,-1613.14167022,0.000162,5]
[404478639,1770186641439,-321.46,0.00016201,2]
[404478640,1770186641451,-151.0,0.00016253,2]
[404478641,1770186641461,-7706.37096829,0.00016256,2]
[404478642,1770186641471,-166.66,0.00016322,2]
[404478643,1770186641481,-500.0,0.00016356,2]
[404478644,1770186641491,-1100.0,0.00016356,2]
[404478645,1770186641500,-1739.21226595,0.00016364,2]
[404478646,1770186641510,-200.0,0.00016409,2]
[404478647,1770186641519,-488.21440145,0.0001641,2]
[404478648,1770186641529,-750.53,0.00016412,2]
[404478649,1770186641539,-152.19,0.00016421,2]
[404478650,1770186641548,-1004.01,0.00016441,2]
[404478651,1770186641558,-161.86,0.00016473,2]
[404478652,1770186641568,-487.0364942,0.00016541,2]
[404478653,1770186641577,-333.34132533,0.00016559,2]
[404478654,1770186641587,-500.0,0.00016562,2]
[404478655,1770186641596,-150.0,0.00016588,2]
[404478656,1770186641606,-1000.0,0.00016598,2]
[404478657,1770186641615,-488.21440145,0.00016708,2]
[404478658,1770186641624,-165.74,0.00016712,2]
[404478659,1770186641633,-161.86,0.00016747,2]
[404478660,1770186641643,-166.66,0.00016828,2]
[404478661,1770186641652,-423.81435249,0.00016872,2]
[404478662,1770186641661,-10000.0,0.000169,2]
[404478663,1770186641673,-10142.1213,0.000169,2]
[404478664,1770186641682,-487.0364942,0.00016955,2]
[404478665,1770186641692,-316.3541921,0.00016972,2]
[404478666,1770186641704,-321.46,0.00016973,2]
[404478667,1770186641714,-423.81435249,0.00016986,2]
[404478668,1770186641723,-300.0,0.00017,2]
[404478669,1770186641732,-6497.41912929,0.00017,2]
[404478670,1770186641742,-333.34132533,0.00017006,2]
[404478671,1770186641752,-488.21440145,0.00017006,2]
[404478672,1770186641761,-161.86,0.00017021,2]
[404478673,1770186641770,-981.19772589,0.00017068,2]
[404478674,1770186641780,-500.0,0.00017092,2]
[404478675,1770186641790,-174.61919141,0.00017099,2]
[404478676,1770186641799,-500.0,0.00017099,2]
[404478677,1770186641809,-500.0,0.00017099,2]
[404478678,1770186641820,-500.0,0.00017099,2]
[404478679,1770186641829,-500.0,0.00017099,2]
[404478680,1770186641838,-500.0,0.00017099,2]
[404478681,1770186641848,-500.0,0.00017099,2]
[404478682,1770186641858,-500.0,0.00017099,2]
[404478683,1770186641867,-500.0,0.00017099,2]
[404478684,1770186641876,-500.0,0.00017099,2]
[404478685,1770186641886,-500.0,0.00017099,2]
[404478686,1770186641895,-626.10481314,0.00017099,2]
[404478687,1770186641904,-322.6107,0.00017099,2]
[404478688,1770186641914,-209.40437684,0.00017099,2]
[404478689,1770186641923,-423.81435249,0.000171,2]
[404478690,1770186641932,-981.19772589,0.00017123,2]
[404478691,1770186641942,-217.15233878,0.00017154,2]
[404478692,1770186641951,-200.0,0.00017174,2]
[404478693,1770186641960,-981.19772589,0.00017205,2]
[404478694,1770186641969,-225.18697532,0.00017209,2]
[404478695,1770186641978,-423.81435249,0.00017215,2]
[404478696,1770186641988,-981.19772589,0.0001726,2]
[404478697,1770186641997,-1000.0,0.0001726,2]
[404478698,1770186642006,-233.51889341,0.00017264,2]
[404478699,1770186642015,-161.86,0.00017295,2]
[404478700,1770186642024,-488.21440145,0.00017304,2]
[404478701,1770186642034,-159.58944175,0.00017318,2]
[404478702,1770186642043,-242.15909246,0.00017319,2]
[404478703,1770186642053,-423.81435249,0.00017329,2]
[404478704,1770186642063,-152.19,0.00017333,2]
[404478705,1770186642072,-166.66,0.00017333,2]
[404478706,1770186642082,-981.19772589,0.00017342,2]
[404478707,1770186642091,-5888.0,0.00017354,2]
[404478708,1770186642101,-487.0364942,0.00017368,2]
[404478709,1770186642110,-251.11897888,0.00017374,2]
[404478710,1770186642119,-981.19772589,0.00017397,2]
[404478711,1770186642129,-160.0,0.00017407,2]
[404478712,1770186642139,-260.4103811,0.00017429,2]
[404478713,1770186642148,-10362.45513624,0.00017441,2]
[404478714,1770186642157,-423.81435249,0.00017443,2]
[404478715,1770186642167,-800.0,0.00017452,7]
[404478716,1770186642176,-333.34132533,0.00017453,2]
[404478717,1770186642185,-150.0,0.00017465,2]
[404478718,1770186642194,-500.0,0.00017465,2]
[404478719,1770186642203,-500.0,0.00017465,2]
[404478720,1770186642211,-500.0,0.00017465,2]
[404478721,1770186642220,-150.0,0.00017465,2]
[404478722,1770186642231,-500.0,0.00017465,2]
[404478723,1770186642242,-500.0,0.00017465,2]
[404478724,1770186642251,-500.0,0.00017465,2]
[404478725,1770186642260,-500.0,0.00017465,2]
[404478726,1770186642269,-547.0,0.00017465,2]
[404478727,1770186642278,-500.0,0.00017465,2]
[404478728,1770186642287,-150.0,0.00017465,2]
[404478729,1770186642296,-631.0,0.00017465,2]
[404478730,1770186642305,-150.0,0.00017465,2]
[404478731,1770186642314,-500.0,0.00017465,2]
[404478732,1770186642323,-500.0,0.00017465,2]
[404478733,1770186642332,-981.19772589,0.00017479,2]
[404478734,1770186642341,-270.0455652,0.00017484,2]
[404478735,1770186642351,-150.0,0.0001752,2]
[404478736,1770186642360,-500.0,0.0001752,2]
[404478737,1770186642370,-500.0,0.0001752,2]
[404478738,1770186642379,-500.0,0.0001752,2]
[404478739,1770186642389,-500.0,0.0001752,2]
[404478740,1770186642398,-500.0,0.0001752,2]
[404478741,1770186642408,-500.0,0.0001752,2]
[404478742,1770186642417,-500.0,0.0001752,2]
[404478743,1770186642427,-547.0,0.0001752,2]
[404478744,1770186642437,-500.0,0.0001752,2]
[404478745,1770186642446,-150.0,0.0001752,2]
[404478746,1770186642455,-631.0,0.0001752,2]
[404478747,1770186642465,-241.64782027,0.0001752,2]
[404478748,1770186642474,-500.0,0.0001752,2]
[404478749,1770186642483,-500.0,0.0001752,2]
[404478750,1770186642492,-530.0,0.00017521,2]
[404478751,1770186642502,-981.19772589,0.00017534,2]
[404478752,1770186642511,-1000.0,0.00017534,2]
[404478753,1770186642520,-280.03725112,0.00017539,2]
[404478754,1770186642530,-423.81435249,0.00017557,2]
[404478755,1770186642539,-161.86,0.00017569,2]
[404478756,1770186642548,-207.26117743,0.00017575,2]
[404478757,1770186642557,-500.0,0.00017575,2]
[404478758,1770186642566,-500.0,0.00017575,2]
[404478759,1770186642575,-622.40818404,0.00017575,2]
[404478760,1770186642584,-500.0,0.00017575,2]
[404478761,1770186642594,-500.0,0.00017575,2]
[404478762,1770186642603,-500.0,0.00017575,2]
[404478763,1770186642612,-500.0,0.00017575,2]
[404478764,1770186642622,-547.0,0.00017575,2]
[404478765,1770186642632,-500.0,0.00017575,2]
[404478766,1770186642642,-150.0,0.00017575,2]
[404478767,1770186642652,-631.0,0.00017575,2]
[404478768,1770186642661,-500.0,0.00017575,2]
[404478769,1770186642670,-500.0,0.00017575,2]
[404478770,1770186642679,-290.39862941,0.00017594,2]
[404478771,1770186642688,-488.21440145,0.00017602,2]
[404478772,1770186642699,-981.19772589,0.00017616,2]
[404478773,1770186642709,-500.0,0.00017629,2]
[404478774,1770186642718,-500.0,0.00017629,2]
[404478775,1770186642727,-500.0,0.00017629,2]
[404478776,1770186642736,-500.0,0.00017629,2]
[404478777,1770186642745,-500.0,0.00017629,2]
[404478778,1770186642755,-500.0,0.00017629,2]
[404478779,1770186642764,-547.0,0.00017629,2]
[404478780,1770186642774,-500.0,0.00017629,2]
[404478781,1770186642784,-242.17460847,0.00017629,2]
[404478782,1770186642793,-631.0,0.00017629,2]
[404478783,1770186642801,-500.0,0.00017629,2]
[404478784,1770186642811,-500.0,0.00017629,2]
[404478785,1770186642819,-181.08010149,0.00017647,2]
[404478786,1770186642828,-301.1433787,0.00017649,2]
[404478787,1770186642837,-440.0,0.00017659,2]
[404478788,1770186643061,-981.19772589,0.00017671,2]
[404478789,1770186643071,-423.81435249,0.00017672,2]
[404478790,1770186643081,-530.0,0.00017676,2]
[404478791,1770186643091,-500.0,0.00017684,2]
[404478792,1770186643100,-500.0,0.00017684,2]
[404478793,1770186643110,-500.0,0.00017684,2]
[404478794,1770186643119,-500.0,0.00017684,2]
[404478795,1770186643128,-311.46949041,0.00017684,2]
[404478796,1770186643137,-500.0,0.00017684,2]
[404478797,1770186643146,-547.0,0.00017684,2]
[404478798,1770186643155,-500.0,0.00017684,2]
[404478799,1770186643164,-631.0,0.00017684,2]
[404478800,1770186643173,-500.0,0.00017684,2]
[404478801,1770186643183,-500.0,0.00017684,2]
[404478802,1770186643192,-1100.0,0.00017726,7]
[404478803,1770186643201,-500.0,0.00017739,2]
[404478804,1770186643209,-500.0,0.00017739,2]
[404478805,1770186643218,-500.0,0.00017739,2]
[404478806,1770186643227,-500.0,0.00017739,2]
[404478807,1770186643237,-500.0,0.00017739,2]
[404478808,1770186643246,-547.0,0.00017739,2]
[404478809,1770186643255,-500.0,0.00017739,2]
[404478810,1770186643264,-631.0,0.00017739,2]
[404478811,1770186643273,-500.0,0.00017739,2]
[404478812,1770186643283,-500.0,0.00017739,2]
[404478813,1770186643292,-321.46,0.00017744,2]
[404478814,1770186643301,-5888.0,0.00017745,2]
[404478815,1770186643310,-981.19772589,0.00017753,2]
[404478816,1770186643320,-487.0364942,0.00017782,2]
[404478817,1770186643329,-423.81435249,0.00017786,2]
[404478818,1770186643338,-500.0,0.00017794,2]
[404478819,1770186643347,-500.0,0.00017794,2]
[404478820,1770186643356,-500.0,0.00017794,2]
[404478821,1770186643365,-428.0,0.00017794,2]
[404478822,1770186643375,-453.30370986,0.00017794,2]
[404478823,1770186643383,-547.0,0.00017794,2]
[404478824,1770186643393,-500.0,0.00017794,2]
[404478825,1770186643402,-631.0,0.00017794,2]
[404478826,1770186643411,-500.0,0.00017794,2]
[404478827,1770186643420,-500.0,0.00017794,2]
[404478828,1770186643429,-594.52695422,0.000178,2]
[404478829,1770186643438,-500.0,0.00017808,2]
[404478830,1770186643448,-981.19772589,0.00017808,2]
[404478831,1770186643457,-1000.0,0.00017808,2]
[404478832,1770186643466,-594.52695417,0.00017811,2]
[404478833,1770186643475,-594.52695417,0.00017822,2]
[404478834,1770186643485,-63398.97925082,0.0001783,2]
[404478835,1770186643495,-594.52695417,0.00017833,2]
[404478836,1770186643504,-166.66,0.00017839,2]
[404478837,1770186643513,-161.86,0.00017843,2]
[404478839,1770186643523,-594.52695417,0.00017844,2]
[404478841,1770186643532,-500.0,0.00017849,2]
[404478843,1770186643542,-500.0,0.00017849,2]
[404478844,1770186643551,-228.05274747,0.00017849,2]
[404478846,1770186643561,-547.0,0.00017849,2]
[404478847,1770186643570,-377.47692943,0.00017849,2]
[404478848,1770186643579,-631.0,0.00017849,2]
[404478849,1770186643588,-500.0,0.00017849,2]
[404478850,1770186643597,-500.0,0.00017849,2]
[404478851,1770186643607,-440.0,0.00017853,2]
[404478852,1770186643616,-594.52695417,0.00017856,2]
[404478853,1770186643626,-200.0,0.00017856,2]
[404478855,1770186643635,-500.0,0.00017863,2]
[404478856,1770186643644,-594.52695417,0.00017867,2]
[404478857,1770186643654,-594.52695417,0.00017878,2]
[404478858,1770186643663,-594.52695417,0.00017889,2]
[404478859,1770186643672,-547.91380347,0.00017899,2]
[404478860,1770186643681,-559.34492563,0.00017899,2]
[404478861,1770186643690,-529.30144481,0.00017899,2]
[404478862,1770186643700,-500.0,0.00017899,2]
[404478863,1770186643712,-500.0,0.000179,2]
[404478864,1770186643721,-16152.7997049,0.000179,3]
[404478865,1770186643730,-333.34132533,0.000179,2]
[404478866,1770186643739,-488.21440145,0.000179,2]
[404478867,1770186643748,-25000.0,0.000179,3]
[404478868,1770186643757,-228.39919254,0.000179,2]
[404478869,1770186643767,-423.81435249,0.000179,2]
[404478870,1770186643776,-594.52695417,0.000179,2]
[404478871,1770186643786,-239.86447206,0.000179,2]
[404478872,1770186643795,-372.12126141,0.000179,2]
[404478873,1770186643804,-3212.11087912,0.000179,2]
[404478874,1770186643815,-214.74181092,0.000179,2]
[404478875,1770186643824,-378.83000863,0.000179,2]
[404478876,1770186643833,-566.70703657,0.000179,2]
[404478877,1770186643842,-766.7649,0.000179,2]
[404478878,1770186643852,-9386.0,0.000179,2]
[404478879,1770186643861,-500.0,0.00017903,2]
[404478880,1770186643870,-500.0,0.00017903,2]
[404478881,1770186643880,-547.0,0.00017903,2]
[404478882,1770186643890,-631.0,0.00017903,2]
[404478883,1770186643900,-500.0,0.00017903,2]
[404478884,1770186643910,-500.0,0.00017903,2]
[404478885,1770186643920,-500.0,0.00017918,2]
[404478886,1770186643929,-500.0,0.00017958,2]
[404478887,1770186643939,-500.0,0.00017958,2]
[404478888,1770186643948,-547.0,0.00017958,2]
[404478889,1770186643958,-631.0,0.00017958,2]
[404478890,1770186643967,-500.0,0.00017958,2]
[404478891,1770186643977,-500.0,0.00017958,2]
[404478892,1770186643987,-702.05888432,0.0001797,2]
[404478893,1770186643996,-500.0,0.00017972,2]
[404478894,1770186644005,-500.0,0.00017973,2]
[404478895,1770186644014,-500.0,0.00017973,2]
[404478896,1770186644024,-500.0,0.00017973,2]
[404478897,1770186644033,-500.0,0.00017973,2]
[404478898,1770186644042,-496.6693993,0.00017973,2]
[404478899,1770186644051,-500.0,0.00017973,2]
[404478900,1770186644060,-465.90748908,0.00017973,2]
[404478901,1770186644071,-500.0,0.00017973,2]
[404478902,1770186644080,-501.02089422,0.00017973,2]
[404478903,1770186644089,-500.96948842,0.00017973,2]
[404478904,1770186644098,-500.68854041,0.00017973,2]
[404478905,1770186644107,-151.18993016,0.00017973,2]
[404478906,1770186644116,-160.61789884,0.00017973,2]
[404478907,1770186644126,-500.0,0.00017973,2]
[404478908,1770186644135,-336.59163653,0.00017973,2]
[404478909,1770186644144,-500.0,0.00017973,2]
[404478910,1770186644153,-500.0,0.00017973,2]
[404478911,1770186644162,-500.0,0.00017973,2]
[404478912,1770186644173,-500.0,0.00017973,2]
[404478913,1770186644182,-502.60776792,0.00017982,2]
[404478914,1770186644191,-390.634617,0.00017983,2]
[404478915,1770186644200,-409.9369716,0.0001799,2]
[404478916,1770186644209,-409.9369716,0.0001799,2]
[404478917,1770186644218,-159.54154906,0.00017997,2]
[404478918,1770186644228,-150.0,0.00017999,2]
[404478919,1770186644237,-252.00977238,0.00017999,2]
[404478920,1770186644247,-396.76821578,0.00017999,2]
[404478921,1770186644257,-155.353,0.00017999,2]
[404478922,1770186644267,-355.35804091,0.00017999,2]
[404478923,1770186644277,-300.0,0.00017999,2]
[404478924,1770186644287,-300.0,0.00017999,2]
[404478925,1770186644297,-500.0,0.00017999,2]
[404478926,1770186644307,-500.0,0.00017999,2]
[404478927,1770186644316,-154.56738754,0.00017999,2]
[404478928,1770186644326,-300.0,0.00017999,2]
[404478929,1770186644335,-666.0,0.00017999,2]
[404478930,1770186644345,-411.23606988,0.00017999,2]
[404478931,1770186644355,-13715.32102969,0.00017999,2]
[404478932,1770186644364,-1000.0,0.00018,2]
[404478933,1770186644374,-1000.0,0.00018,2]
[404478934,1770186644384,-979.90774973,0.00018,2]
[404478935,1770186644393,-2585142.41445982,0.00018,2]
[404478938,1770186644791,-680.76275655,0.00018,2]
[404478939,1770186644891,-6587.776033,0.00018,2]
[404478940,1770186644901,-863.92841003,0.00018,2]
[404478985,1770186712293,390.634617,0.00017986,120]
[404478998,1770187832220,-355.35804091,0.00014999,2]
[404478999,1770187832230,-600.0,0.00015011,2]
[404479000,1770187832239,-600.0,0.00015023,2]
[404479001,1770187832248,-858.25749893,0.00015089,2]
[404479002,1770187832304,-405.95984743,0.00015089,2]
[404479003,1770187832315,-3343.31296243,0.00015089,2]
[404479004,1770187832327,-3037.92,0.00015089,2]
[404479006,1770187832337,-1614.4797699,0.00015089,2]
[404479029,1770187832495,-341.348914,0.00015089,2]
[404479031,1770187832507,-25054.03411694,0.00015089,2]
[404479035,1770187832531,-958.74566101,0.00015089,2]
[404479042,1770187832589,-2277.12736625,0.00015089,2]
[404479060,1770187838115,-737.14690502,0.00015089,2]
[404479066,1770187840180,-7550.15985809,0.00015089,2]
[404479067,1770187840191,-10682.28254801,0.00015189,2]
[404479068,1770187840202,-166.66,0.0001528,2]
[404479069,1770187840212,-600.0,0.00015359,2]
[404479070,1770187840221,-333.34132537,0.00015571,2]
[404479071,1770187840230,-423.81435249,0.00015571,2]